Cogmind - Beta 17.1 @@@ ROGUE MODE // 2026.09.08 @ 20:59:04 Player: Cereal Killer Result: Destroyed by J5-F60(R) with Subdweller Laser Performance ------------- Evolutions (0) 0 Regions Visited (2) 400 Robots Destroyed (17) 85 Value Destroyed (390) 390 Prototype IDs (4) 80 Alien Tech Used (0) 0 Bonus (7400) 7400 TOTAL SCORE: 8355 Bonus ------- Prayed to X0-1V1 5000 Major X0-1V1 Interference 2400 Cogmind --------- Core Integrity 0/190 Matter 77/300 Energy 970/970 System Corruption 11% Temperature Cool (6) Movement Core (300) Ox5 Location -10/Subcaves Parts ------- > --- POWER (1) -------- Makeshift Power Source > --- PROPULSION (2) --- (None) > --- UTILITY (2) ------ Small Storage Unit X0-1V1's Piety Tracker > --- WEAPON (2) ------- Barrage Gun Light Cannon > --- INVENTORY (8) ---- Makeshift Leg Transport Network Coupler EM Pulse Gun Subdweller Laser Subdweller Machine Gun Grenade Launcher Peak State ------------ > --- POWER ------------ Makeshift Power Source > --- PROPULSION ------- Wheel Subdweller Monowheel > --- UTILITY ---------- Small Storage Unit X0-1V1's Piety Tracker > --- WEAPON ----------- Barrage Gun Light Cannon > --- INVENTORY -------- Light Ion Engine Light Treads Makeshift Leg Transport Network Coupler EM Pulse Gun Subdweller Laser Grenade Launcher [Rating: 26] Favorites ----------- Power Ion Engine Engine Ion Engine Propulsion Compact Wheel Treads Light Treads Wheel Compact Wheel Utility Small Storage Unit Device X0-1V1's Piety Tracker Storage Small Storage Unit Weapon Light Assault Rifle Ballistic Gun Light Assault Rifle Ballistic Cannon Light Cannon Launcher Grenade Launcher Build | -11 -10 -10 ------- Run | Yrd Mat Sub Slots Evolved . | . . . Power . | . . . Propulsion . | . . . Utility . | . . . Weapon . | . . . Parts Attached 19 | 6 8 5 Power 4 | 1 2 1 Engine 4 | 1 2 1 Core . | . . . Reactor . | . . . Propulsion 7 | 2 3 2 Treads 2 | . 2 . Leg . | . . . Wheel 5 | 2 1 2 Hover . | . . . Flight . | . . . Utility 3 | 1 1 1 Device 2 | . 1 1 Storage 1 | 1 . . Processor . | . . . Hackware . | . . . Protection . | . . . Artifact . | . . . Weapon 5 | 2 2 1 Energy Gun . | . . . Energy Cannon . | . . . Ballistic Gun 3 | 2 . 1 Ballistic Cannon 1 | . 1 . Launcher 1 | . 1 . Special Weapon . | . . . Impact Weapon . | . . . Slashing Weapon . | . . . Piercing Weapon . | . . . Special Melee Weapon . | . . . Unidentified Prototypes 1 | . 1 . Parts Lost 6 | . 1 5 Power 1 | . 1 . Propulsion 4 | . . 4 Utility 1 | . . 1 Weapon . | . . . Highest Loss Streak 2 | . 1 2 To Critical Strikes . | . . . Average Backups 6 | 3 6 7 Power . | . 1 . Propulsion 2 | 1 2 2 Utility 1 | . 1 1 Weapon 2 | 1 1 3 Tool/Special . | . . . Unused Backups 9 | . 2 7 Power 1 | . . 1 Propulsion 2 | . . 2 Utility 2 | . 1 1 Weapon 4 | . 1 3 Tool/Special . | . . . Average Slot Usage (%) 93 | . 93 92 Engine 13 | . 13 14 Treads 3 | . 4 . Wheel 23 | . 23 23 Device 10 | . 8 12 Storage 14 | . 14 14 Ballistic Gun 20 | . 27 9 Ballistic Cannon 5 | . . 14 Launcher 2 | . . 4 Peak Build Rating 26 | 6 19 26 Average Rating 15 | 4 14 20 On Entrance 8 | . 6 19 Avg Prop Armor Cover (%) 4 | . 4 . Naked Turns . | . . . Heaviest Build 17 | 12 15 17 Greatest Support 40 | 32 40 30 Greatest Overweight (x) 1 | . . 1 Average Overweight (x) . | . . . Largest Inventory Capacity 8 | 8 8 8 Average Capacity 7 | 7 8 8 Most Carried 8 | 5 8 8 Average Carried 6 | 3 6 6 Final Capacity 8 | 8 8 8 Final Carried 7 | 4 7 6 Class Distribution -------------------- 100% | Mutant Dominant Class ---------------- Mutant | -10/Materials Mutant | -10/Subcaves Resources | -11 -10 -10 ----------- Run | Yrd Mat Sub Matter Collected 586 | 234 206 146 Remotely . | . . . Salvage Created 467 | . 330 137 Parts 27 | . 18 9 Haulers Intercepted 2 | . 2 . Recyclers Shooed 3 | . 3 . Parts Field Recycled . | . . . Retrieved Matter . | . . . Parts Self-Destructed 14 | . . 14 Prevented . | . . . Parts Restored . | . . . Kills | -11 -10 -10 ------- Run | Yrd Mat Sub Combat Hostiles Destroyed 15 | . 8 7 Guns 8 | . 7 1 Cannons 3 | . . 3 AOE 4 | . 1 3 Classes Destroyed 4 | . 3 1 Hauler 2 | . 2 . Swarmer 7 | . 3 4 Grunt 5 | . 5 . Subdweller 3 | . . 3 Best Kill Streak 4 | . 3 4 Combat Bots Only 4 | . 3 4 Max Kills in Single Turn 2 | . 1 2 Gunslinging . | . . . Exploded 2 | . 1 2 Melee . | . . . Uniques/NPCs Destroyed . | . . . Combat | -11 -10 -10 -------- Run | Yrd Mat Sub Hostile Shots Fired 88 | . 56 32 Missed 22 | . 14 8 Hits 66 | . 42 24 Projectile 66 | . 42 24 Critical Strikes 3 | . 1 2 Damage Taken 946 | . 488 458 Core 250 | . 160 90 Absorbed by Shields . | . . . Core Remaining (%) 100 | 100 . . Volleys Fired 71 | 1 45 25 Largest 2 | 2 2 2 Hottest 58 | 40 50 58 Shots Fired 137 | 2 90 45 Gun 109 | 2 86 21 Cannon 23 | . 2 21 Launcher 5 | . 2 3 Special . | . . . Kinetic 132 | 2 88 42 Thermal . | . . . Explosive 5 | . 2 3 Electromagnetic . | . . . Robot Hit Streak 12 | 1 7 12 Robot Miss Streak 3 | 1 3 1 Penetration Max . | . . . Secondary Targets 3 | . 3 . Max Gunslinging Chain 1 | . 1 . Shots Hit Robots 80 | 1 54 25 Core Hits 38 | . 27 11 Critical Kills . | . . . Critical Parts Destroyed . | . . . Critical Strikes 1 | . . 1 Blast 1 | . . 1 Melee Attacks . | . . . Impact . | . . . Slashing . | . . . Piercing . | . . . Sneak Attacks . | . . . Combat Hostiles . | . . . Follow-up Attacks . | . . . Damage Inflicted 1049 | 12 555 482 Guns 573 | 12 429 132 Cannons 223 | . 20 203 Explosions 253 | . 106 147 Melee . | . . . Ramming . | . . . Kinetic 796 | 12 449 335 Thermal . | . . . Explosive 253 | . 106 147 Electromagnetic . | . . . Impact . | . . . Slashing . | . . . Piercing . | . . . Highest Corruption 11 | . . 11 Average Corruption 11 | . . 11 Corruption Purged . | . . . Corruption Blocked . | . . . Effects 4 | . . 4 Matter Fused 1 | . . 1 Data Loss (minor) 1 | . . 1 Misfires 1 | . . 1 Weapon Failures 1 | . . 1 Overload Shots . | . . . Overflow Damage 13 | . . 13 Projectiles . | . . . Explosions 13 | . . 13 Melee . | . . . Knockbacks . | . . . Impact . | . . . Kinetic . | . . . Secondary . | . . . Self-Inflicted Damage 37 | . . 37 Shots 1 | . . 1 Rammed . | . . . Targets Rammed . | . . . Kicked . | . . . Crushed . | . . . Highest Temperature 238 | . 238 6 Average Temperature 42 | . 43 6 Received Heat Transfer 312 | . 228 84 Siege Activations . | . . . Martial Activations . | . . . Shielding Activations . | . . . Robots Disrupted . | . . . Combat Hostiles . | . . . Robots Corrupted . | . . . Combat Hostiles . | . . . Parts Fried . | . . . Impact Corruptions . | . . . Robots Melted . | . . . Combat Hostiles . | . . . Parts Melted 2 | . . 2 Heat Transferred . | . . . Parts Sabotaged . | . . . Parts Stolen . | . . . Parts Stripped . | . . . Power Chain Reactions . | . . . Alert | -11 -10 -10 ------- Run | Yrd Mat Sub Maximum Alert Level 1 | . 1 . Low Security (%) 91 | 100 91 . Level 1 8 | . 8 . Level 2 . | . . . Level 3 . | . . . Level 4 . | . . . Level 5 . | . . . High Security . | . . . Max Security . | . . . Peak Influence 288 | . 288 . Initial . | . . . Average 40 | . 43 . Influence Increases 563 | . 483 80 Destroy 0b10 Robot/C 240 | . 160 80 Destroy 0b10 Robot/NC 10 | . 10 . Destroy Leader 44 | . 44 . Destroy Structure 7 | . 7 . Lose Combat Pursuer 30 | . 30 . Miscellaneous 232 | . 232 . Influence Decreases 563 | . 211 352 Entered New Map 132 | . . 132 Time Decay 391 | . 201 190 Lost Part 40 | . 10 30 Squads Dispatched 2 | . 2 . Investigation 1 | . 1 . Extermination . | . . . Reinforcement 1 | . 1 . Assault . | . . . Garrison . | . . . Intercept . | . . . Searches Triggered . | . . . Construction Impeded . | . . . Haulers Reinforced . | . . . Active Scanning Responses . | . . . Cargo Convoy Interrupts . | . . . Stealth | -11 -10 -10 --------- Run | Yrd Mat Sub Distress Signals 1 | . 1 . Communications Jammed . | . . . Distress Signals . | . . . Times Spotted 32 | . 24 8 Peak Tracking Total 5 | . 5 4 Tactical Retreats 1 | . 1 . Traps | -11 -10 -10 ------- Run | Yrd Mat Sub Traps Triggered . | . . . Indirectly . | . . . Trap Hack Attempts . | . . . Triggered . | . . . Disarmed . | . . . Reprogrammed . | . . . Reused . | . . . Traps Extracted . | . . . Installed . | . . . Triggered . | . . . Machines | -11 -10 -10 ---------- Run | Yrd Mat Sub Machines Disabled . | . . . Max in Single Turn . | . . . Machines Repaired . | . . . Machines Dismantled . | . . . Machines Sabotaged . | . . . Overloaded Fab Kills . | . . . Hacking | -11 -10 -10 --------- Run | Yrd Mat Sub Machines Accessed 4 | . 4 . Terminals 4 | . 4 . Fabricators . | . . . Repair Stations . | . . . Recycling Units . | . . . Scanalyzers . | . . . Garrison Access . | . . . Total Hacks 10 | . 10 . Successful 2 | . 2 . Failed 8 | . 8 . Catastrophic . | . . . Database Lockouts . | . . . Manual 4 | . 4 . Terminals 10 | . 10 . Fabricators . | . . . Repair Stations . | . . . Recycling Units . | . . . Scanalyzers . | . . . Garrison Access . | . . . Terminal Hacks 2 | . 2 . Prototype ID Bank 2 | . 2 . Fabricator Hacks . | . . . Repair Station Hacks . | . . . Recycling Unit Hacks . | . . . Scanalyzer . | . . . Garrison Access Hacks . | . . . Unauthorized Hacks . | . . . Terminals . | . . . Fabricators . | . . . Repair Stations . | . . . Recycling Units . | . . . Scanalyzers . | . . . Garrison Access . | . . . Data Cores Recovered . | . . . Used . | . . . Hacking Detections 4 | . 4 . Full Trace Events 1 | . 1 . Feedback Events . | . . . Feedback Blocked . | . . . Robot Schematics Acquired . | . . . Robots Built . | . . . Authchips . | . . . Time . | . . . Total Robot Build Rating . | . . . Part Schematics Acquired . | . . . Parts Built . | . . . Authchips . | . . . Time . | . . . Total Part Build Rating . | . . . Part Studies Acquired . | . . . Parts Repaired . | . . . Time . | . . . Parts Recycled . | . . . Recycled Matter . | . . . Retrieved Matter . | . . . Retrieved Components . | . . . Parts Scanalyzed . | . . . Part Schematics Acquired . | . . . Parts Damaged . | . . . Bothacking | -11 -10 -10 ------------ Run | Yrd Mat Sub Used RIF Installer . | . . . Robots Hacked . | . . . Non-combat . | . . . Combat . | . . . Robot Hacks Applied . | . . . Relay Couplers Released . | . . . Fabnet Peak Effective % . | . . . Robots Rewired . | . . . Allies Hacked . | . . . Hacks Repelled . | . . . Allies | -11 -10 -10 -------- Run | Yrd Mat Sub Total Allies . | . . . Largest Group . | . . . Highest-Rated Group . | . . . Highest-Rated Ally . | . . . Total Orders . | . . . Ally Attacks . | . . . Total Damage . | . . . Kills . | . . . Allies Corrupted . | . . . Allies Melted . | . . . X0-1V1 Amusement Gains 21 | . 11 10 Average Entertainment 10 | . 6 15 Good Acts 3 | . 3 . Bad Acts 17 | . 11 6 Intel | -11 -10 -10 ------- Run | Yrd Mat Sub Active Infowar (turns) . | . . . Robot Analysis Total . | . . . Derelict Logs Recovered . | . . . Drone Launches . | . . . Drone Recoveries . | . . . Exploration | -11 -10 -10 ------------- Run | Yrd Mat Sub Turns Passed 1174 | 60 688 426 Spaces Moved 882 | 46 486 350 Core 8 | 8 . . Treads 49 | . 49 . Legs . | . . . Wheels 825 | 38 437 350 Hover . | . . . Flight . | . . . Fastest Speed 50 | 50 90 90 Average Speed 101 | 91 105 97 Slowest Speed 160 | 100 160 115 Overloaded Moves . | . . . Propulsion Burnouts . | . . . Robots Hopped . | . . . Potential Cave-ins . | . . . Cave-ins Triggered . | . . . Exploration Rate (%) 35 | 4 76 25 Regions Visited 2 Branch Regions 1 Pre-discovered Areas . | . . . Known Exits Taken . | . . . Unknown Exits Taken 2 | 1 1 . Scrap Searched . | . . . Spaces Dug . | . . . Terrain Destroyed 33 | . 14 19 Melee . | . . . Projectile . | . . . AOE 33 | . 14 19 Terrain Rammed . | . . . Walls Destroyed . | . . . Machines Disabled . | . . . Actions | -11 -10 -10 --------- Run | Yrd Mat Sub Total 1044 | 62 587 395 Wait 37 | . 33 4 Move 880 | 45 485 350 Hop . | . . . Pick Up 23 | 10 8 5 Fast Attach 2 | . 1 1 Attach 9 | 6 1 2 Detach . | . . . Swap 11 | . 8 3 Drop 11 | . 6 5 Fire 71 | 1 45 25 Melee . | . . . Ram . | . . . Kick . | . . . Crush . | . . . Escape Stasis . | . . . Rewire . | . . . Trap . | . . . Miscellaneous . | . . . Route ------- -11/Scrapyard -10/Materials (discovered 5 exits: [*Mat x3] / [*Min] / [*Sub]) -10/Subcaves (discovered 1 exit: [*Mat]) History --------- Turn | Location | Event 24 | -11/Scrapyard | Discovered new exit (range 15) 61 | -11/Scrapyard | Entered Materials 214 | -10/Materials | Discovered new exit (range 15) 295 | -10/Materials | Discovered new exit (range 4) 301 | -10/Materials | Prayed at D.C.S.S. Altar Unit 335 | -10/Materials | Build established: Mutant 482 | -10/Materials | Discovered new exit (range 8) 561 | -10/Materials | Derelicts attacked the area 648 | -10/Materials | Discovered new exit (range 8) 688 | -10/Materials | X0-1V1 added 0b10 threat records associated with you (major) 690 | -10/Materials | Discovered new exit (range 5) 703 | -10/Materials | X0-1V1 sent you into danger 707 | -10/Materials | Core integrity fell below 50% 716 | -10/Materials | Melee accuracy permanently improved by X0-1V1 (+6%; -60 max core) 719 | -10/Materials | X0-1V1 made a cryptic comment about sterilization and BL-4Z3 731 | -10/Materials | X0-1V1 upgraded hostiles (x1) 749 | -10/Materials | Entered Subcaves 750 | -10/Subcaves | Approached by a straggling Scientist 835 | -10/Subcaves | Discovered new exit (range 8) 851 | -10/Subcaves | X0-1V1 sent hostile S-10 Pest (x4) 960 | -10/Subcaves | Shifting Twisted Machinery released Riot Gun 976 | -10/Subcaves | A swath of the cavern ceiling suddenly collapsed 994 | -10/Subcaves | Shifting Twisted Machinery released Barrage Gun 1045 | -10/Subcaves | System corruption reached 10% 1172 | -10/Subcaves | Core integrity fell below 20% 1175 | -10/Subcaves | Destroyed by J5-F60(R) with Subdweller Laser Last Messages --------------- 01045_ Dropped Corrupted Lgt. Ion Engine. 01046_ Dropped Corrupted Lgt. Treads. 01051_ System corrupted: Component data lost. 01087_ Acquired 1 matter. 01101_ System corrupted: Matter fused (-10). 01107_ X0-1V1 curses 2 of your inventory parts (corrupted). 01116_ Matter capacity returns to normal. 01155_ X0-1V1: "Use it or lose it, I always say." 01155_ Wheel fused. 01155_ Sub. Monowheel fused. 01158_ System corrupted: FCS attempts to trigger Barrage Gun. 01158_ System corrupted: Barrage Gun misfires. 01169_ Sub. Monowheel destroyed. 01169_ Wheel destroyed. 01171_ KI-Y41(R) destroyed. 01174_ System corrupted: Lgt. Cannon jammed. 01175_ X0-1V1 snickers! Map ----- +----------------------------------------------------+ | ?????????????????????????????????????????????????? | | ?????????????????????????????????????????????????? | | ?????????????????????????????????????????????????? | | ?????????????????????????????????????????????????? | | ?????????????????????????????????????????????????? | | ?????????????????????????????????????????????????? | | ?????????????????????????????????????????????????? | | ?????????????????????????????????????????????????? | | ?????????????????????????????????????????????????? | | ?????????????????????????????????????????????????? | | ?????????????????????????????????????????????????? | | ?????????????????????????????????????????????????? | | ?????????????????????????????????????????????????? | | ????????????#####????????????????????????????????? | | ?############ #?????##??###????????????????????? | | ## ## ## ## #????##"## #????????????????????? | | #???##"" #????????????????????? | | ""#???#""" #????????????????????? | | ## # "#??##""" ##????????????????????? | | ######## #??#"""" #?????????????????????? | | ##??????# #?## " ####?????????????????????? | | #######?# ####"" " ##???????????????????????? | | # ## ####""""" #????? ???????????????? | | " #### "" #???" #????????????? | | " ### " ##" #????????????? | | # " # # " ""@%&% ????????????? | | " "" "####""[R%! ????????????? | | "" "" ## ##??##""""""""###??????????????? | | "# #"## ##?# ##????#"""######????????????????? | | #########???### ##?????#"""#?????????????????????? | | ??????????????###??????## "#?????????????????????? | | ?????????????????????????????????????????????????? | | ?????????????????????????????????????????????????? | | ?????????????????????????????????????????????????? | | ?????????????????????????????????????????????????? | | ?????????????????????????????????????????????????? | | ?????????????????????????????????????????????????? | | ?????????????????????????????????????????????????? | | ?????????????????????????????????????????????????? | | ?????????????????????????????????????????????????? | | ?????????????????????????????????????????????????? | | ?????????????????????????????????????????????????? | | ?????????????????????????????????????????????????? | | ?????????????????????????????????????????????????? | | ?????????????????????????????????????????????????? | | ?????????????????????????????????????????????????? | | ?????????????????????????????????????????????????? | | ?????????????????????????????????????????????????? | | ?????????????????????????????????????????????????? | | ?????????????????????????????????????????????????? | +----------------------------------------------------+ Best States ------------- Heat Dissipation 25 Energy Generation 15 Energy Capacity 1050 Matter Stores 300 Matter Capacity 300 Sight Range 16 Terrain Scan Density 10 Evasion (%) 50 Recoil Reduction 2 Item Schematics ----------------- None Robot Schematics ------------------ None Fabricated ------------ Nothing Repaired ---------- Nothing Studied --------- None Alien Tech Used ----------------- None Achievements -------------- None Challenges ------------ None Game ------ Seed HeavyPoweredSpiker Manual? 0 Play Time 00:14:00 Cumulative 365.9 hours Start 2026.09.08 @ 20:48:15 End 2026.09.08 @ 20:59:04 Sessions 1 Manual Loads 0 Difficulty Rogue Special Mode None Game No. 276 Rogue 267 Adventurer 9 Explorer 0 Win Type - Total 5 Types 4/0/0/1/0/0/0/0/0/0 Lore% 88 Gallery% 74 Achievement% 56 Wizard Run 0 Options --------- Layout 1 ASCII 0 Keyboard 0 Movement Numpad Keybinds 0 Fullscreen 1 Font 24/Smallcaps Map View 50x35 Zoom Use 0% Tactical HUD 1 Map Filters NONE Filters NONE Steam 1 RUN: f501e2d6-d59c-4b63-8ec6-17c77abb8477